[Event "Fagernes Chess GM-Swiss 2025"]
[Site "Fagernes"]
[Date "2025.04.14"]
[Round "2.10"]
[White "Urazayev, Arystanbek"]
[Black "Adharsh K"]
[Result "1-0"]
[Annotator "RC"]
[ECO "B53"]
[WhiteElo "2467"]
[BlackElo "2317"]
[PlyCount "111"]
[EventDate "2025.04.12"]
[EventCountry "NOR"]
[SourceTitle "playchess.com"]
[Source "ChessBase"]
[SourceQuality "1"]
[TimeControl "40/6000+30:2400+30"]

1. e4 {[%emt 0:00:10]} c5 {[%emt 0:05:07]} 2. Nf3 {[%emt 0:00:06]} d6 {[%emt 0:00:34]} 3. d4 {[%emt 0:06:18]} cxd4 {[%emt 0:00:07]} 4. Qxd4 {[%emt 0:00:04]} Nf6 {[%emt 0:09:00]} 5. Nc3 {[%emt 0:05:58]} Nc6 {[%emt 0:04:40]} 6. Qe3 {[%emt 0:02:01]} g6 {[%emt 0:00:51]} 7. h3 {[%emt 0:00:06]} Bg7 {[%emt 0:00:10]} 8. Bc4 {[%emt 0:00:06]} O-O {[%emt 0:01:21]} 9. O-O {[%emt 0:00:08]} Be6 {[%emt 0:09:36]} 10. Bxe6 {[%emt 0:02:20]} fxe6 {[%emt 0:00:09]} 11. Rd1 {[%emt 0:01:18]} e5 {[%emt 0:03:13]} 12. Nd5 {[%emt 0:09:56]} Kh8 {[%emt 0:24:39]} 13. c3 {[%emt 0:05:52]} Nh5 {[%emt 0:03:44]} 14. Qd3 {[%emt 0:07:18]} Qd7 {[%emt 0:05:49]} 15. a4 {[%emt 0:08:40]} Rad8 {[%emt 0:02:02]} 16. a5 {[%emt 0:03:24]} e6 {[%emt 0:04:54]} 17. Nb4 {[%emt 0:00:24]} h6 {[%emt 0:04:31]} 18. a6 {[%emt 0:05:56]} Nxb4 {[%emt 0:00:12]} 19. cxb4 {[%emt 0:00:05]} b6 {[%emt 0:02:40]} 20. Ra3 {[%emt 0:02:44]} Qf7 {[%emt 0:06:56]} 21. Qe2 {[%emt 0:02:00]} Nf6 {[%emt 0:03:07]} 22. Rad3 {[%emt 0:03:13]} Qc7 {[%emt 0:02:18]} 23. Rc3 {[%emt 0:02:40]} Qe7 {[%emt 0:01:44]} 24. Rc6 {[%emt 0:01:36]} Kh7 {[%emt 0:00:00]} 25. b5 {[%emt 0:07:58]} Ne8 {[%emt 0:10:07]} 26. b3 {[%emt 0:03:45]} d5 {[%emt 0:00:23]} 27. Bb2 {[%emt 0:06:51]} d4 {[%emt 0:00:24]} 28. Ne1 {[%emt 0:00:35]} Qb4 {[%emt 0:02:39]} 29. Qc4 {[%emt 0:08:55]} Qxc4 {[%emt 0:00:58]} 30. bxc4 {[%emt 0:00:03]} Nf6 {[%emt 0:00:22]} 31. f3 {[%emt 0:02:30]} Rc8 {[%emt 0:00:04]} 32. Rxe6 {[%emt 0:02:07]} Rfe8 {[%emt 0:01:15]} 33. Rd6 {[%emt 0:05:18]} Rxc4 {[%emt 0:00:13]} 34. Nd3 {[%emt 0:00:05]} Re7 {[%emt 0:01:18]} 35. Rd8 {[%emt 0:01:46]} Re8 {[%emt 0:00:37]} 36. Rd6 {[%emt 0:00:53]} Re7 {[%emt 0:00:07]} 37. Ba3 {[%emt 0:02:22]} Re8 {[%emt 0:00:09]} 38. Rc6 {[%emt 0:01:46]} Rxc6 {[%emt 0:02:30]} 39. bxc6 {[%emt 0:00:03]} Rc8 {[%emt 0:00:11]} 40. Nxe5 {[%emt 0:00:56]} Nxe4 {[%emt 0:00:04]} 41. Rxd4 {[%emt 0:42:06]} Nc3 {[%emt 0:41:35]} 42. Rd7 {[%emt 0:00:00]} Nb5 {[%emt 0:00:00]} 43. Bb2 {[%emt 0:00:00]} Kg8 {[%emt 0:00:00]} 44. Nxg6 {[%emt 0:00:00]} Bf8 {[%emt 0:00:00]} 45. Nxf8 {[%emt 0:00:00]} Kxf8 {[%emt 0:00:00]} 46. Rd5 {[%emt 0:00:00]} Nc7 {[%emt 0:00:00]} 47. Rd6 {[%emt 0:00:00]} Nxa6 {[%emt 0:00:00]} 48. Rxh6 {[%emt 0:00:00]} Kf7 {[%emt 0:00:00]} 49. Rh7+ {[%emt 0:00:00]} Ke6 {[%emt 0:00:00]} 50. Rxa7 {[%emt 0:00:00]} Nb4 {[%emt 0:00:00]} 51. Rh7 {[%emt 0:00:00]} Nxc6 {[%emt 0:00:00]} 52. Rb7 {[%emt 0:00:00]} Rb8 {[%emt 0:00:00]} 53. Rxb8 {[%emt 0:00:00]} Nxb8 {[%emt 0:00:00]} 54. h4 {[%emt 0:00:00]} b5 {[%emt 0:00:00]} 55. h5 {[%emt 0:00:00]} Kf7 {[%emt 0:00:00]} 56. g4 {[%emt 0:00:00]} 1-0

[Event "Fagernes Chess GM-Swiss 2025"]
[Site "Fagernes"]
[Date "2025.04.14"]
[Round "2.11"]
[White "Vijayakumar, Rishi"]
[Black "Hillarp Persson, Tiger"]
[Result "1-0"]
[Annotator "RC"]
[ECO "E73"]
[WhiteElo "2317"]
[BlackElo "2462"]
[PlyCount "69"]
[EventDate "2025.04.12"]
[EventCountry "NOR"]
[SourceTitle "playchess.com"]
[Source "ChessBase"]
[SourceQuality "1"]
[TimeControl "40/6000+30:2400+30"]

1. d4 {[%emt 0:00:08]} Nf6 {[%emt 0:01:24]} 2. c4 {[%emt 0:00:21]} g6 {[%emt 0:00:10]} 3. Nc3 {[%emt 0:01:06]} Bg7 {[%emt 0:00:07]} 4. e4 {[%emt 0:00:06]} d6 {[%emt 0:00:06]} 5. Be2 {[%emt 0:00:13]} O-O {[%emt 0:00:32]} 6. Be3 {[%emt 0:00:27]} e5 {[%emt 0:08:21]} 7. d5 {[%emt 0:00:13]} Na6 {[%emt 0:00:06]} 8. h3 {[%emt 0:00:14]} Nc5 {[%emt 0:02:58]} 9. Qc2 {[%emt 0:00:07]} a5 {[%emt 0:10:37]} 10. O-O-O {[%emt 0:07:12]} Bd7 {[%emt 0:11:55]} 11. Nf3 {[%emt 0:01:50]} Qe8 {[%emt 0:00:07]} 12. g4 {[%emt 0:20:09]} a4 {[%emt 0:06:34]} 13. Nd2 {[%emt 0:14:30]} Na6 {[%emt 0:12:19]} 14. Rdg1 {[%emt 0:13:33]} c6 {[%emt 0:09:17]} 15. a3 {[%emt 0:05:40]} h6 {[%emt 0:08:45]} 16. h4 {[%emt 0:01:16]} Nh7 {[%emt 0:00:16]} 17. Nf1 {[%emt 0:12:24]} Qe7 {[%emt 0:04:40]} 18. Ng3 {[%emt 0:01:59]} Nc5 {[%emt 0:01:11]} 19. g5 {[%emt 0:06:50]} Nb3+ {[%emt 0:00:24]} 20. Kb1 {[%emt 0:00:22]} Nd4 {[%emt 0:01:08]} 21. Qd2 {[%emt 0:00:58]} hxg5 {[%emt 0:05:25]} 22. hxg5 {[%emt 0:03:53]} c5 {[%emt 0:00:17]} 23. Rh2 {[%emt 0:02:29]} Rfb8 {[%emt 0:04:00]} 24. Nb5 {[%emt 0:02:48]} Bxb5 {[%emt 0:00:26]} 25. cxb5 {[%emt 0:00:04]} Qd7 {[%emt 0:00:19]} 26. Rh4 {[%emt 0:02:55]} Nf8 {[%emt 0:06:01]} 27. Rgh1 {[%emt 0:00:27]} Nxe2 {[%emt 0:01:00]} 28. Qxe2 {[%emt 0:00:13]} Ra5 {[%emt 0:00:44]} 29. Qf3 {[%emt 0:01:29]} Qd8 {[%emt 0:02:45]} 30. Nf5 {[%emt 0:02:11]} gxf5 {[%emt 0:00:14]} 31. exf5 {[%emt 0:00:05]} f6 {[%emt 0:02:42]} 32. g6 {[%emt 0:00:24]} Qd7 {[%emt 0:01:29]} 33. Bh6 {[%emt 0:04:08]} Nxg6 {[%emt 0:05:28]} 34. fxg6 {[%emt 0:00:11]} e4 {[%emt 0:00:43]} 35. Qf4 {[%emt 0:00:19]} 1-0

[Event "Fagernes Chess GM-Swiss 2025"]
[Site "Fagernes"]
[Date "2025.04.14"]
[Round "2.12"]
[White "Ghosh, Diptayan"]
[Black "Myagmarsuren, Evsuld"]
[Result "1-0"]
[Annotator "TA"]
[ECO "D46"]
[WhiteElo "2573"]
[BlackElo "2305"]
[PlyCount "133"]
[EventDate "2025.04.12"]
[EventCountry "NOR"]
[SourceTitle "playchess.com"]
[Source "ChessBase"]
[SourceQuality "1"]
[TimeControl "40/6000+30:2400+30"]

{[%evp 14,133,22,22,10,27,27,36,48,43,59,66,88,64,70,74,71,63,66,58,101,92,91,92,106,89,112,112,144,83,84,87,122,113,144,113,127,99,96,92,89,87,91,91,95,89,167,157,155,71,84,54,64,64,74,71,80,66,76,60,64,75,85,53,101,93,122,122,185,192,184,184,187,187,181,181,202,202,205,210,210,210,210,210,189,148,324,319,402,398,1062,1008,1018,488,1055,925,1072,1061,1066,863,1004,831,1022,1011,773,727,584,498,1089,1095,973,990,4772,4772,4631,4614,1304,1096,1539,1533,1250,947]} 1. d4 {[%emt 0:02:50]} d5 {[%emt 0:00:33]} 2. c4 {[%emt 0:00:06]} c6 {[%emt 0:00:04]} 3. Nf3 {[%emt 0:00:04]} Nf6 {[%emt 0:00:06]} 4. e3 {[%emt 0:00:05]} e6 {[%emt 0:00:04]} 5. Bd3 {[%emt 0:00:39]} Nbd7 {[%emt 0:00:10]} 6. O-O {[%emt 0:00:07]} dxc4 {[%emt 0:00:04]} 7. Bxc4 {[%emt 0:00:04]} Bd6 {[%emt 0:00:07]} 8. Nc3 {[%emt 0:00:15]} b5 {[%emt 0:00:12] D46: Semi-Slav: 5 e3 Nbd7 6 Bd3, Black avoids the Meran.} 9. Bb3 {[%emt 0:00:09]} b4 {[%emt 0:00:15] 9...b4 is better than 9...0-0.} 10. Na4 {[%emt 0:00:23][%cal Oe3e4]} O-O {[%emt 0:00:06] White is slightly better.} 11. Re1 {[%emt 0:08:43]} e5 $146 {[%emt 0:11:06]} (11... c5 12. Bd2 Rb8 13. Rc1 Qe7 14. e4 e5 15. Nh4 g6 16. dxe5 Nxe5 17. f4 Nfg4 {0-1 McCoy,O (2085)-Vivekananthan,A (2350) Titled Tuesday intern op 26th Jul Early blitz 2022 (5)}) 12. e4 {[%emt 0:02:04]} Qc7 {[%emt 0:07:26]} 13. h3 {[%emt 0:10:55]} c5 {[%emt 0:05:13]} 14. dxc5 {[%emt 0:05:18]} Nxc5 {[%emt 0:01:09]} 15. Nxc5 {[%emt 0:00:56]} Bxc5 {[%emt 0:01:28]} 16. Bg5 {[%emt 0:01:09]} Qb6 {[%emt 0:13:02]} 17. Qc2 {[%emt 0:05:07]} (17. Nxe5 Bxf2+ 18. Kh1 Bxe1 19. Qxe1 Bb7 20. Bxf6 Qxf6 $17) 17... Be6 {[%emt 0:06:10]} 18. Nxe5 {[%emt 0:09:30]} Rfc8 {[%emt 0:07:51]} 19. Nd3 {[%emt 0:17:46]} Be7 {[%emt 0:06:02]} 20. Qd1 {[%emt 0:01:57]} a5 {[%emt 0:08:22]} 21. Qf3 {[%emt 0:09:24]} ({White should play} 21. e5 $1 {Bxe6 would now be deadly.} Bxb3 22. axb3) 21... Bxb3 $16 {[%emt 0:03:03]} 22. axb3 {[%emt 0:00:32]} Qe6 {[%emt 0:00:55]} 23. e5 {[%emt 0:06:10]} Nd5 {[%emt 0:03:37][%cal Bf6d5,Bd5e7,Be7g6,Bg6f4][%mdl 32]} 24. Bxe7 {[%emt 0:00:29]} Nxe7 {[%emt 0:00:07]} 25. Nf4 {[%emt 0:00:35]} Qc6 {[%emt 0:00:24]} 26. Qg4 {[%emt 0:02:49] White is more active.} Ng6 {[%emt 0:02:11]} 27. e6 {[%emt 0:01:15]} Nxf4 {[%emt 0:01:49]} 28. exf7+ {[%emt 0:00:22]} Kxf7 {[%emt 0:00:16] And now ...Ng6 would win.} 29. Qxf4+ {[%emt 0:00:04]} Qf6 {[%emt 0:02:12]} (29... Kg8 $16) 30. Qe4 $1 $18 {[%emt 0:01:30]} Kg8 {[%emt 0:02:16][%cal Og8h8] [#]} 31. Rac1 {[%emt 0:04:33] Black is weak on the light squares} (31. Qd5+ $142 $1 Qf7 32. Rxa5 Rxa5 33. Qxa5) 31... Qf7 {[%emt 0:01:41]} 32. Qd3 {[%emt 0:02:59]} Rd8 {[%emt 0:07:19]} 33. Qg3 {[%emt 0:00:07]} Rd7 {[%emt 0:07:43]} 34. Rc5 {[%emt 0:02:13][%cal Oc5a5]} h6 {[%emt 0:02:29]} 35. Rce5 {[%emt 0:01:09]} Kh7 {[%emt 0:05:38]} 36. Qe3 {[%emt 0:02:06]} Ra6 {[%emt 0:02:03]} 37. h4 {[%emt 0:02:16][%cal Bh3h4,Bh4h5][%mdl 32]} Qg6 {[%emt 0:04:17]} 38. Qc5 {[%emt 0:03:51]} Rf7 {[%emt 0:01:29]} (38... Qd6 $14) 39. h5 $16 {[%emt 0:01:28]} Qf6 {[%emt 0:00:30]} 40. Qc2+ {[%emt 0:02:27]} g6 {[%emt 0:00:29]} (40... Kh8 $16 41. Qe2 Ra8) 41. Rc5 $18 {[%emt 0:08:54]} Kg7 {[%emt 0:02:01]} 42. Re3 $36 {[%emt 0:06:55][%mdl 2048] White has strong initiative.} Re6 {[%emt 0:07:38]} 43. Rxe6 {[%emt 0:06:22]} Qxe6 {[%emt 0:00:31][%mdl 4096] Endgame KQR-KQR. White is a pawn up.} 44. g3 {[%emt 0:07:02]} gxh5 {[%emt 0:04:34]} 45. Rxh5 {[%emt 0:00:49]} (45. Rxa5 h4 46. Kg2 (46. gxh4 Qg4+ 47. Kf1 Qxh4 $11) 46... Qg4 $11) 45... a4 {[%emt 0:02:07]} 46. bxa4 {[%emt 0:11:08]} Qe1+ {[%emt 0:00:15]} 47. Kg2 {[%emt 0:00:01]} b3 {[%emt 0:00:08] [#]} 48. Qc3+ {[%emt 0:01:39]} (48. Qxb3 $2 Rxf2+ 49. Kh3 Qf1+ 50. Kh4 Rh2+ 51. Kg4 Qe2+ 52. Qf3 Qxf3+ (52... Qxb2 53. Rxh2 Qxh2 54. Qc3+ Kf7 55. a5 $16) 53. Kxf3 Rxh5 $19) (48. Qc5 Qe4+ 49. Kg1 (49. Kh2 Qf3 $11) 49... Qb1+ 50. Kg2 Qe4+ 51. Kh2 Qf3 $11) 48... Qxc3 49. bxc3 {[%emt 0:00:01] KR-KR. White is two pawns up.} Rc7 $2 {[%emt 0:01:24] Loses the game.} (49... Rb7 $16 {might work better.} 50. Rh1 Rc7) 50. Rb5 {[%emt 0:00:05]} Rxc3 {[%emt 0:00:09]} 51. a5 {[%emt 0:00:03][%cal Ba4a5,Ba5a6][%mdl 32]} Rd3 $2 {[%emt 0:02:57]} (51... Kf7 52. a6 Rc6) 52. Rb7+ {[%emt 0:01:41] White is clearly winning.} Kg6 {[%emt 0:05:38]} 53. Rb6+ {[%emt 0:01:26]} (53. a6 $142 {Intending a7 and mate.} Rd2 54. Rxb3 (54. Rb6+ Kg5 $18)) 53... Kg5 {[%emt 0:01:24]} (53... Kf5 $142 54. a6 (54. Rxh6 Rd5 $18) 54... Rd2 55. Rxh6 (55. Rxb3 Ra2 $18) (55. Rb5+ Kg6 $18) 55... Ra2 56. Rh5+ Kf6) 54. a6 {[%emt 0:00:13]} b2 {[%emt 0:00:23]} 55. Rxb2 {[%emt 0:00:08]} Ra3 {[%emt 0:00:04] Wards off Ra2} 56. Rb5+ {[%emt 0:00:16]} Kg6 {[%emt 0:00:11]} 57. Rb6+ {[%emt 0:00:03]} Kg5 {[%emt 0:00:06]} 58. Kh3 {[%emt 0:00:38]} Kh5 {[%emt 0:00:37]} 59. Rc6 {[%emt 0:02:56]} (59. f4 Rxg3+ 60. Kh2 Ra3 $16) 59... Kg5 {[%emt 0:00:27]} 60. Kg2 {[%emt 0:00:18]} Kh5 {[%emt 0:00:38]} (60... h5 $142 61. f4+ Kf5) 61. f3 {[%emt 0:02:11]} Kg5 {[%emt 0:02:11]} 62. g4 {[%emt 0:00:55]} Ra2+ {[%emt 0:01:49]} 63. Kg3 {[%emt 0:00:12][%csl Gg3][%cal Rf3f4]} Ra3 {[%emt 0:01:20]} 64. Rb6 {[%emt 0:00:24]} h5 {[%emt 0:01:15]} 65. Rb5+ {[%emt 0:00:13]} Kf6 {[%emt 0:00:07]} 66. Rxh5 {[%emt 0:00:06]} Rxa6 {[%emt 0:00:12]} 67. Rb5 {[%emt 0:00:12] Weighted Error Value: White=0.18 (very precise) /Black=0.51  Loses game:     	---       	Black=1      Mistake:       	White=2     	Black=4      Inaccurate:     	White=2     	Black=3      OK:         	White=24    	Black=18     Best:        	White=4     	Black=3      Strong:       	White=1     	---} 1-0

[Event "Fagernes Chess GM-Swiss 2025"]
[Site "Fagernes"]
[Date "2025.04.14"]
[Round "2.13"]
[White "Eliseev, Sergey"]
[Black "Makhnev, Denis"]
[Result "0-1"]
[Annotator "TA"]
[ECO "B31"]
[WhiteElo "2226"]
[BlackElo "2537"]
[PlyCount "110"]
[EventDate "2025.04.12"]
[EventCountry "NOR"]
[SourceTitle "playchess.com"]
[Source "ChessBase"]
[SourceQuality "1"]
[TimeControl "40/6000+30:2400+30"]

{[%evp 17,110,0,0,-31,-19,-27,-25,-29,-22,-21,-23,-29,-25,-23,41,35,72,48,50,37,34,31,31,38,23,-25,-20,-30,-20,0,-8,-12,1,15,9,0,0,0,0,-103,-87,-81,0,0,8,-22,-22,-22,-22,-22,-22,-67,-48,-40,0,0,0,0,0,-131,-119,-102,-79,-227,-186,-373,-367,-482,-483,-402,-405,-520,-385,-427,-417,-720,-740,-767,-638,-1404,-1077,-1356,-1444,-5768,-5739,-5594,-5764,-29974,-29975,-29977,-29978,-29979,-29980,-29980,-29981]} 1. e4 {[%emt 0:00:03]} c5 {[%emt 0:04:19]} 2. Nf3 {[%emt 0:00:03]} Nc6 {[%emt 0:00:06]} 3. Bb5 {[%emt 0:00:25]} Nf6 {[%emt 0:00:08]} 4. Nc3 {[%emt 0:01:01]} g6 {[%emt 0:00:31]} 5. O-O {[%emt 0:03:29]} Bg7 {[%emt 0:00:35]} 6. d3 {[%emt 0:02:48]} O-O {[%emt 0:04:34]} 7. Be3 {[%emt 0:02:16]} d6 {[%emt 0:00:26]} 8. Bxc6 {[%emt 0:11:04]} bxc6 {[%emt 0:00:09]} 9. h3 {[%emt 0:01:06]} e5 {[%emt 0:05:22]} 10. Ne2 $146 {[%emt 0:13:01] B31: Sicilian: 2...Nc6 3 Bb5 g6.} (10. Qd2 Nh5 11. Ne2 f5 12. exf5 gxf5 13. Bh6 f4 14. Bxg7 Nxg7 15. Kh2 Be6 16. b3 Qf6 17. Rae1 Bd5 {0-1 Hjartarson,J (2460)-Safarli,E (2609) EU-ch Blitz Zagreb 2023 (5)}) 10... Nh5 {[%emt 0:35:19]} 11. Ng3 {[%emt 0:16:09]} Nf4 {[%emt 0:03:00]} 12. Qd2 {[%emt 0:03:14] Black has an edge.} Qf6 {[%emt 0:00:16][%cal Of4h3]} 13. Nh2 {[%emt 0:02:41]} h5 {[%emt 0:07:59]} 14. Ne2 {[%emt 0:01:59]} Bh6 {[%emt 0:00:48]} 15. Kh1 {[%emt 0:08:09]} Kh7 {[%emt 0:01:34]} ({Better is} 15... g5 $11) 16. g3 $14 {[%emt 0:05:18]} d5 $1 {[%emt 0:16:02][%cal Bd6d5,Bd5d4,Bd4e3][%mdl 32]} 17. gxf4 {[%emt 0:10:06]} d4 {[%emt 0:00:01]} 18. fxe5 {[%emt 0:01:26]} (18. f5 $5 dxe3 19. fxe3 $15) 18... dxe3 {[%emt 0:00:04]} 19. exf6 {[%emt 0:00:09]} exd2 {[%emt 0:00:02]} 20. Kg2 {[%emt 0:04:47]} c4 {[%emt 0:00:51]} 21. d4 {[%emt 0:01:48]} (21. dxc4 {feels stronger.} Re8 22. Nc3) 21... Rb8 $11 {[%emt 0:00:19]} 22. Rab1 {[%emt 0:01:52]} Re8 $36 {[%emt 0:01:46][%mdl 2048] Black fights for an advantage.} 23. f3 {[%emt 0:02:18]} Re6 {[%emt 0:02:23]} 24. Rfd1 {[%emt 0:04:51]} Rxf6 {[%emt 0:02:00][%cal Oc6c5]} 25. Nf1 {[%emt 0:00:13]} c5 {[%emt 0:00:05]} 26. d5 {[%emt 0:04:11]} (26. Nxd2 {simplifies} cxd4 27. Nxc4 Ba6 28. b3) 26... Rfb6 {[%emt 0:00:28]} 27. b3 {[%emt 0:02:40]} Ra6 $1 {[%emt 0:00:08]} (27... cxb3 28. axb3 Ra6 (28... Ba6 29. Kf2 $16) 29. Nxd2 $14) 28. f4 {[%emt 0:02:49]} (28. a4 $1 $11 {remains equal.}) 28... Rxa2 $17 {[%emt 0:11:00] Black plays on the queen side and is better Black has more active pieces.} 29. Rxd2 {[%emt 0:00:01]} cxb3 {[%emt 0:01:27]} (29... a5 $17 30. d6 Be6) 30. Rxb3 $11 {[%emt 0:00:31]} Rb4 {[%emt 0:01:23]} 31. Re3 {[%emt 0:02:06]} g5 {[%emt 0:02:00]} 32. d6 {[%emt 0:02:49]} gxf4 {[%emt 0:01:12]} 33. Rf3 {[%emt 0:00:01]} (33. d7 $2 Bxd7 (33... fxe3 34. dxc8=Q exd2 35. Qd7 $11) 34. Rf3 Bc6 $19 (34... Rxe4 35. Nc3 $15)) 33... Rc4 {[%emt 0:00:01]} (33... Rxe4 $2 34. Nc3 (34. d7 $2 Rxe2+ 35. Rxe2 Bxd7 $19) 34... Bb7 (34... Rea4 $2 35. Nxa4 Rxa4 36. d7 $18) 35. d7 $18 (35. Nxa2 Ra4 $18)) 34. c3 {[%emt 0:01:20]} (34. d7 $2 Bxd7 35. Nc3 (35. Rxd7 $2 Rcxc2 36. Rf2 Kg8 $19) 35... Ra3 36. Rxd7 Rcxc3 $19 (36... Raxc3 37. Rxf7+ Kg6 38. Rxa7 $19)) 34... Rca4 {[%emt 0:00:28] [#]} 35. Kf2 $1 {[%emt 0:00:41]} (35. Nxf4 $2 Rxd2+ 36. Nxd2 Ra2 $19) (35. d7 Bxd7 36. Rxd7 Rxe2+ 37. Rf2 Rxf2+ (37... Raxe4 $2 38. Rxf7+ Kg6 39. Rxa7 $19) 38. Kxf2 Kg6 (38... Rxe4 $2 39. Rxf7+ Kg6 40. Rxa7 $19) 39. Rd6+ Kg7 $17) 35... Rxd2 {[%emt 0:03:48]} 36. Nxd2 {[%emt 0:00:01]} Ra2 {[%emt 0:00:01]} 37. Rd3 {[%emt 0:00:54] d7 would now be deadly.} Bd7 {[%emt 0:00:09]} 38. e5 {[%emt 0:00:38] [#]} (38. Kf3 $11) 38... Rxd2 $1 {[%emt 0:05:43][%mdl 512]} 39. Rxd2 $17 {[%emt 0:00:01][%mdl 4096] Endgame KRN-KB} f3 $1 {[%emt 0:00:01]} (39... Bxh3 $2 {is the wrong capture.} 40. d7 Bg5 41. d8=Q (41. d8=R Bh4+ 42. Kg1 Bg5 $18) 41... Bxd8 42. Rxd8 $18) 40. Ra2 {[%emt 0:00:55] This costs White the game.} (40. Rd5 $17 fxe2 41. Kxe2) 40... fxe2 $19 {[%emt 0:00:03]} 41. Kxe2 $2 {[%emt 0:14:22]} (41. Rxa7 {was necessary.} Be6 (41... Bxh3 42. Rxf7+ Kg6 43. Rf6+ Kg7 44. Kxe2 $17) 42. Kxe2) 41... Bxh3 {[%emt 0:01:41]} 42. Rxa7 {[%emt 0:01:29]} Be6 {[%emt 0:00:11]} 43. Kf3 {[%emt 0:09:02]} Kg6 {[%emt 0:04:50]} 44. Ke4 {[%emt 0:03:52]} Bg5 {[%emt 0:02:55]} 45. Ra1 {[%emt 0:05:57]} h4 {[%emt 0:01:22]} 46. Rd1 {[%emt 0:00:43]} (46. Rh1 $142) 46... h3 {[%emt 0:01:29]} 47. d7 {[%emt 0:02:07]} Bd8 {[%emt 0:00:22] Strongly threatening ...Kg7.} 48. Kf4 {[%emt 0:01:41]} Kg7 {[%emt 0:00:11]} 49. Kg3 {[%emt 0:03:12]} Kf8 {[%emt 0:00:18]} 50. c4 {[%emt 0:00:34]} Ke7 {[%emt 0:00:10]} 51. Rd6 {[%emt 0:00:20]} Bxd7 {[%emt 0:01:06] ( -> ...Bc7)} 52. Rd5 {[%emt 0:00:08]} Bb6 {[%emt 0:00:14] Black mates.} 53. Kh2 {[%emt 0:00:38]} Be6 {[%emt 0:00:10]} 54. Rd1 {[%emt 0:02:03]} Bc7 {[%emt 0:00:04]} 55. Re1 {[%emt 0:00:13]} f6 {[%emt 0:00:05] Weighted Error Value: White=0.80/Black=0.09 (flawless)   Mistake:       	White=6     	Black=2      Inaccurate:     	White=3     	Black=1      OK:         	White=12    	Black=16     Best:        	White=3     	Black=7      Strong:       	White=1     	Black=3} 0-1

[Event "Fagernes Chess GM-Swiss 2025"]
[Site "Fagernes"]
[Date "2025.04.14"]
[Round "2.14"]
[White "Kulaots, Kaido"]
[Black "Gandrud, Vegar Koi"]
[Result "1/2-1/2"]
[Annotator "TA"]
[ECO "B94"]
[WhiteElo "2510"]
[BlackElo "2273"]
[PlyCount "58"]
[EventDate "2025.04.12"]
[EventCountry "NOR"]
[SourceTitle "playchess.com"]
[Source "ChessBase"]
[SourceQuality "1"]
[TimeControl "40/6000+30:2400+30"]

{[%evp 11,58,15,26,17,37,16,0,3,39,36,30,31,33,30,52,62,76,0,0,0,26,-35,-31,-21,11,-70,30,-72,0,0,0,0,0,0,0,-32,0,0,0,0,0,0,0,0,0,0,0,0,0]} 1. e4 {[%emt 0:00:09]} c5 {[%emt 0:00:03]} 2. Nf3 {[%emt 0:00:13]} d6 {[%emt 0:00:09]} 3. d4 {[%emt 0:00:10]} cxd4 {[%emt 0:00:05]} 4. Nxd4 {[%emt 0:00:04]} Nf6 {[%emt 0:00:06]} 5. Nc3 {[%emt 0:00:05]} a6 {[%emt 0:00:07]} 6. Bg5 {[%emt 0:01:14]} Nbd7 {[%emt 0:00:17]} 7. a3 {[%emt 0:00:17] B94: Sicilian Najdorf: 6 Bg5 Nbd7.} Qc7 {[%emt 0:13:14]} 8. Qd2 {[%emt 0:04:19]} e6 {[%emt 0:01:44]} 9. O-O-O {[%emt 0:03:16]} Be7 {[%emt 0:01:26]} 10. f3 {[%emt 0:12:40]} h6 {[%emt 0:02:40]} 11. Be3 {[%emt 0:01:02]} b5 {[%emt 0:03:12]} 12. g4 {[%emt 0:39:27]} Bb7 {[%emt 0:00:10]} 13. h4 {[%emt 0:02:11]} d5 {[%emt 0:03:51]} 14. exd5 {[%emt 0:20:40]} (14. Rg1 $16) 14... Nxd5 $11 {[%emt 0:00:13]} 15. Nxd5 {[%emt 0:00:36]} Bxd5 {[%emt 0:00:13]} 16. Bf4 $146 {[%emt 0:02:37]} (16. Nf5 $11 Rc8 17. Bf4 (17. Nxg7+ $2 Kf8 $17)) (16. Be2 Rc8 17. Kb1 Ne5 18. g5 h5 19. Rh3 Nc4 20. Bxc4 Qxc4 21. b3 Qc3 22. Qxc3 Rxc3 {½-½ Kuspak,A (1858)-Stankiewicz,P (1771) POL 14th Olympiade U14 Boys 2008 (9)}) 16... Qb7 $15 {[%emt 0:16:44][%cal Oa8c8]} 17. Be2 {[%emt 0:03:09][%cal Od4f5]} Nb6 {[%emt 0:05:16]} 18. Kb1 {[%emt 0:03:36]} ({Better is} 18. g5 $11) 18... f6 {[%emt 0:11:38]} ({Black should play} 18... O-O $15) 19. Bg3 {[%emt 0:05:41]} (19. Rhe1 $11) 19... Nc4 {[%emt 0:19:28]} (19... O-O $17) 20. Bxc4 $11 {[%emt 0:02:01]} bxc4 {[%emt 0:00:44]} 21. Qc3 {[%emt 0:05:39] [#]} e5 {[%emt 0:16:22]} 22. Nf5 {[%emt 0:00:18][%cal Oh1e1,Bd4f5,Bf5g7,Bg7e6,Be6c7][%mdl 32] Black must now prevent Rhe1!.} Bxf3 {[%emt 0:00:07]} 23. Qxc4 {[%emt 0:00:57]} Bxh1 {[%emt 0:00:59] A strong pair of Bishops.} (23... Kf8 $5 24. Nxe7 Kxe7 $11 (24... Bxh1 25. Ng6+ Ke8 26. Qe6+) (24... Qxe7 25. Be1 $11)) 24. Nxg7+ {[%emt 0:01:29] The position is equal.} Kf8 {[%emt 0:00:01]} 25. Ne6+ {[%emt 0:00:09]} Ke8 {[%emt 0:00:03][%cal Oa8b8]} 26. Nc7+ {[%emt 0:00:55]} Kf8 {[%emt 0:00:09][%cal Oe7a3]} 27. Ne6+ {[%emt 0:00:26]} Ke8 {[%emt 0:00:02]} 28. Ng7+ {[%emt 0:00:34]} Kf8 {[%emt 0:00:07]} 29. Ne6+ {[%emt 0:00:29]} Ke8 {[%emt 0:00:14] Weighted Error Value: White=0.21 (precise) /Black=0.25 (precise)   Mistake:       	White=4     	Black=2      Inaccurate:     	White=1     	Black=5      OK:         	White=13    	Black=3      Best:        	---       	Black=5} 1/2-1/2